bitfinex-derivatives/quotes_ETHF0:USTF0_20250212
["timestamp","ask_amount","ask_price","bid_price","bid_amount"]
[1739323108335,7.2358372,2606.8,2606.4,0.47047219]
[1739323108537,7.2358372,2606.8,2606.5,0.47047219]
[1739323108737,1.1478,2606.7,2606.3,3.8048]
[1739323109044,1.1478,2606.7,2606.4,0.47049929]
[1739323109342,1.1478,2606.7,2606.5,0.47049929]
[1739323109543,1.1478,2606.7,2606.3,3.8048]
[1739323109731,1.1478,2606.7,2606.4,0.47055853]
[1739323109937,1.1478,2606.7,2606.5,0.47055853]
[1739323110136,1.1478,2606.7,2606.3,3.8048]
[1739323110444,3.2078,2606.8,2606.4,0.47055917]
[1739323110641,3.2078,2606.8,2606.5,0.47055917]
[1739323110838,3.2078,2606.8,2606.6,0.47055917]
[1739323111039,3.2078,2606.8,2606.7,0.47055917]
[1739323111444,3.2078,2606.8,2606.7,0.47055418]
[1739323112843,16.51798545,2606.8,2605.9,0.00575109]
[1739323113147,3.2078,2606.1,2606.0,0.47065097]
[1739323113348,3.2078,2606.4,2606.0,0.47065097]
[1739323113539,3.7635,2606.4,2606.1,0.47065097]
[1739323113843,7.77988774,2606.4,2605.9,0.00575109]
[1739323114042,7.77988774,2606.4,2606.0,0.47051734]
[1739323114242,7.77988774,2606.4,2606.1,0.47051734]
[1739323114546,7.77988774,2606.4,2605.9,0.00575109]
[1739323114750,7.77988774,2606.4,2606.0,0.47047499]
[1739323114942,7.77988774,2606.4,2606.1,0.47047499]
[1739323115246,7.77988774,2606.4,2605.9,0.00575109]
[1739323115449,7.77988774,2606.4,2606.0,0.47047344]
[1739323115741,4.57208774,2606.4,2606.1,0.47039656]
[1739323115948,4.57208774,2606.4,2605.9,0.00575109]
[1739323115949,3.2078,2606.2,2605.9,0.00575109]
[1739323116242,1.734,2606.1,2605.9,0.00575109]
[1739323116440,6.72318724,2606.1,2605.9,0.00575109]
[1739323118840,1.734,2606.0,2605.9,0.00575109]
[1739323120741,5.87316199,2606.0,2605.9,0.00575109]
[1739323120942,6.45156199,2606.0,2605.9,0.00575109]
[1739323121537,12.45156199,2606.0,2605.0,3.2078]
[1739323121749,6.3678088,2605.7,2605.0,3.2078]
[1739323122047,6.3678088,2605.7,2605.1,0.46997881]
[1739323122048,0.6003,2605.6,2605.1,0.46997881]
[1739323122350,0.6003,2605.6,2605.0,3.2078]
[1739323122351,4.99922309,2605.6,2605.2,0.46997881]
[1739323122539,4.99922309,2605.6,2605.0,3.2078]
[1739323122848,5.00497418,2605.6,2605.1,0.46967602]
[1739323123042,5.00497418,2605.6,2605.2,0.46967602]
[1739323123244,5.00497418,2605.6,2605.0,3.2078]
[1739323123443,5.00497418,2605.6,2605.1,0.46966646]
[1739323123640,5.00497418,2605.6,2605.2,0.46966646]
[1739323123842,5.00497418,2605.6,2605.0,3.2078]
[1739323124042,5.00497418,2605.6,2605.1,0.46945268]
[1739323124239,5.00497418,2605.6,2605.2,0.46945001]
[1739323124450,5.00497418,2605.6,2605.0,3.2078]
[1739323124652,3.2078,2605.4,2605.0,3.2078]
[1739323126158,8.1028088,2605.4,2604.9,41.3739]
[1739323126351,4.00876848,2605.3,2604.9,41.3739]
[1739323127651,3.2078,2605.4,2604.9,41.3739]
[1739323127848,3.2078,2605.4,2605.0,0.46873406]
[1739323128049,0.00575109,2605.6,2605.1,3.62874093]
[1739323128250,0.00575109,2605.6,2605.2,3.67653213]
[1739323128451,0.00575109,2605.6,2605.3,0.46873213]
[1739323128655,0.00575109,2605.6,2605.3,40.8]
[1739323130748,0.00575109,2605.6,2605.4,1.114]
[1739323130953,3.2078,2605.8,2605.4,1.114]
[1739323130954,3.2078,2605.8,2605.5,1.06707062]
[1739323131156,1.735,2606.1,2605.5,0.5983]
[1739323131555,3.2078,2606.2,2605.7,3.1600088]
[1739323131760,3.2078,2606.2,2605.8,0.46873971]
[1739323132060,3.2078,2606.2,2605.9,0.46873537]
[1739323132260,3.2078,2606.2,2606.0,1.03393622]
[1739323132466,0.00575109,2606.3,2606.1,1.1666]
[1739323132759,0.00575109,2606.3,2606.2,0.46870707]
[1739323133159,3.2078,2606.9,2606.2,6.46870707]
[1739323133359,1.735,2607.0,2606.4,6.3678088]
[1739323133674,1.735,2607.0,2606.5,41.26870707]
[1739323133965,1.735,2607.0,2606.5,40.8]
[1739323134459,7.53112564,2606.9,2606.5,40.8]
[1739323134662,3.2078,2606.7,2606.5,40.8]
[1739323136358,3.2078,2606.7,2606.6,0.5731]
[1739323136564,1.74075109,2607.0,2606.6,1.1609]
[1739323136764,1.74075109,2607.0,2606.7,0.5632]
[1739323138359,3.2078,2606.9,2606.7,0.5632]
[1739323138757,1.74075109,2607.0,2606.7,0.5632]
[1739323139364,3.2078,2606.9,2606.7,0.5632]
[1739323139565,3.2078,2606.9,2606.5,40.8]
[1739323139761,7.39246726,2606.9,2606.5,40.8]
[1739323140165,3.2078,2606.6,2606.3,1.1284]
[1739323140361,7.95327606,2606.9,2606.3,1.1284]
[1739323140556,3.7686088,2606.9,2606.3,41.9284]
[1739323140761,4.13360132,2606.8,2606.3,41.9284]
[1739323141067,3.2078,2606.7,2606.3,41.9284]
[1739323141862,3.7686088,2606.9,2606.3,41.9284]
[1739323142165,0.6086,2606.9,2606.3,41.9284]
[1739323142669,4.94855109,2607.0,2606.4,6.3678088]
[1739323142670,3.21355109,2607.0,2606.4,6.3678088]
[1739323143570,0.00575109,2607.0,2606.4,6.3678088]
[1739323144762,0.00575109,2607.0,2606.7,6.3678088]
[1739323144972,0.00575109,2607.0,2606.8,1.1107]
[1739323145172,0.00575109,2607.0,2606.9,0.6064]
[1739323145865,0.00575109,2607.0,2606.9,41.4064]
[1739323150067,0.00575109,2607.0,2606.4,3.2078]
[1739323150274,1.17275109,2607.0,2606.4,3.2078]
[1739323150772,3.2078,2606.8,2606.4,40.8]
[1739323150980,0.5591,2606.7,2606.4,40.8]
[1739323151168,4.85367725,2606.7,2606.4,40.8]
[1739323152272,3.2078,2606.5,2606.4,40.8]
[1739323156072,3.2078,2606.5,2606.0,0.5839]
[1739323156073,7.64647902,2606.5,2606.0,0.5839]
[1739323156278,3.2078,2606.1,2605.8,0.5706]
[1739323156580,3.2078,2606.1,2605.9,40.8]
[1739323158476,1.734,2606.3,2605.9,40.8]
[1739323158978,3.2078,2606.1,2605.9,40.8]
[1739323159476,1.734,2606.3,2605.9,40.8]
[1739323159678,4.9418,2606.5,2606.0,0.47009401]
[1739323159878,3.2078,2606.5,2606.1,4.18840281]
[1739323160083,3.2078,2606.5,2606.2,1.02973902]
[1739323160270,3.2078,2606.5,2606.2,0.5597]
[1739323160470,0.5995,2606.8,2606.4,3.1600088]
[1739323160686,11.78552,2609.0,2606.5,0.47026296]
[1739323160687,3.2078,2607.4,2606.5,0.47026296]
[1739323160875,1.734,2607.3,2606.6,1.60736296]
[1739323161077,1.734,2607.3,2606.7,41.27026296]
[1739323161380,1.734,2607.3,2606.8,0.4702326]
[1739323161381,0.5995,2607.2,2606.8,0.4702326]
[1739323161576,0.5995,2607.2,2606.8,0.5937]
[1739323162283,1.734,2607.3,2606.9,0.47031827]
[1739323162485,4.9418,2607.4,2606.9,0.47031827]
[1739323162979,4.9418,2607.4,2606.9,41.27031827]
[1739323163574,4.9418,2607.4,2606.9,41.27022522]
[1739323164181,4.9418,2607.4,2606.9,41.27026032]
[1739323164376,3.21355109,2607.0,2606.9,40.8]
[1739323164778,3.21355109,2607.0,2606.6,1.1371]
[1739323164977,0.00575109,2607.0,2606.7,0.470212]
[1739323165177,0.00575109,2607.0,2606.6,1.1371]
[1739323165178,0.00575109,2607.0,2606.8,40.8]
[1739323167881,0.00575109,2607.0,2606.9,0.4701864]
[1739323169784,0.00575109,2607.0,2606.8,40.8]
[1739323170086,0.00575109,2607.0,2606.9,0.47006278]
[1739323170587,0.00575109,2607.0,2606.9,3.67786278]
[1739323171389,23.2560088,2607.8,2606.9,3.67786278]
[1739323171390,20.096,2607.8,2606.9,10.44517278]
[1739323171584,20.096,2607.8,2607.1,3.1600088]
[1739323171789,20.096,2607.8,2607.2,1.63106278]
[1739323172082,20.096,2607.8,2607.3,0.46991505]
[1739323172280,20.096,2607.8,2607.4,0.46991505]
[1739323172486,23.3038,2607.8,2607.2,1.7157]
[1739323172688,23.3038,2607.8,2607.3,0.47553555]
[1739323172878,23.3038,2607.8,2607.3,0.00575109]
[1739323175089,23.3038,2607.8,2607.4,0.46956236]
[1739323175284,23.3038,2607.8,2607.3,3.21355109]
[1739323175881,23.3038,2607.8,2607.4,0.46947077]
[1739323176087,23.3038,2607.8,2607.3,3.21355109]
[1739323177987,23.3038,2607.8,2607.3,0.00575109]
[1739323183597,26.4638088,2607.8,2607.3,0.00575109]
[1739323183802,4.21133676,2607.7,2607.3,0.00575109]
[1739323184205,23.3038,2607.8,2607.3,0.00575109]
[1739323185408,3.2078,2607.8,2607.3,0.00575109]
[1739323186111,3.2078,2607.8,2607.4,3.62930187]
[1739323186410,3.2078,2607.8,2607.5,0.46950792]
[1739323186607,3.2078,2607.8,2607.6,40.8]
[1739323187409,0.00575109,2607.9,2607.7,3.62974349]
[1739323187710,0.00575109,2607.9,2607.8,1.02762847]
[1739323188408,0.00575109,2607.9,2607.8,1.02785272]
[1739323192108,3.8167,2608.4,2607.8,7.02785272]
[1739323192410,3.8167,2608.4,2608.1,3.1600088]
[1739323192614,3.8167,2608.4,2608.2,0.47005326]
[1739323192808,3.8167,2608.4,2608.1,3.1600088]
[1739323193013,3.8167,2608.4,2608.3,40.8]
[1739323194710,0.6089,2608.4,2608.3,40.8]
[1739323204322,13.7623724,2608.4,2607.4,6.7593]
[1739323204617,6.3678088,2608.1,2607.5,0.47027189]
[1739323204818,8.0998088,2608.1,2607.6,40.8]
[1739323205015,4.07026644,2608.0,2607.6,40.8]
[1739323205620,0.5863,2607.9,2607.6,40.8]
[1739323206024,4.24629737,2607.8,2607.6,40.8]
[1739323206226,0.5887,2607.7,2607.6,40.8]
[1739323206423,0.5887,2608.0,2607.6,41.27024172]
[1739323206718,3.2078,2608.1,2607.8,3.1600088]
[1739323206923,5.1457,2608.3,2607.9,0.47022499]
[1739323206924,0.5863,2608.3,2607.9,0.47022499]
[1739323207126,0.5863,2608.3,2608.0,1.02962499]
[1739323207319,0.5863,2608.3,2608.1,0.47022499]
[1739323207519,3.2078,2608.4,2608.0,0.5594]
[1739323207715,3.2078,2608.4,2608.1,0.47018542]
[1739323207927,3.2078,2608.4,2608.0,0.5594]
[1739323208123,3.2078,2608.4,2608.1,0.47018622]
[1739323208325,3.2078,2608.4,2608.0,0.5594]
[1739323208522,3.2078,2608.4,2608.1,0.47020701]
[1739323208824,3.2078,2608.4,2608.2,0.47020701]
[1739323209026,3.2078,2608.4,2608.0,0.5594]
[1739323209226,0.5887,2608.5,2608.1,0.47020535]
[1739323209429,0.00575109,2608.6,2608.2,0.47020535]
[1739323209621,0.00575109,2608.6,2608.4,3.1600088]
[1739323210121,0.00575109,2608.6,2608.5,0.5964]
[1739323210431,0.00575109,2608.6,2608.5,41.3964]
[1739323210623,0.00575109,2608.6,2608.5,41.86655694]
[1739323210818,0.00575109,2608.6,2608.5,41.3964]
[1739323211828,0.00575109,2608.6,2608.5,41.86660508]
[1739323212333,0.6074,2609.2,2608.5,41.86660508]
[1739323212521,0.6074,2609.2,2608.8,3.1600088]
[1739323212823,3.2078,2609.3,2608.9,1.0431843]
[1739323213025,0.6071,2609.4,2609.0,0.4701843]
[1739323213222,0.6071,2609.4,2609.0,0.611]
[1739323213924,0.00575109,2609.5,2609.1,6.3678088]
[1739323214125,0.572,2609.8,2609.4,6.3678088]
[1739323214330,0.572,2609.8,2609.5,1.1973]
[1739323215422,0.572,2609.8,2609.1,6.3678088]
[1739323215628,0.572,2609.8,2609.4,3.1600088]
[1739323215828,0.572,2609.8,2609.6,40.8]
[1739323216128,0.00379702,2609.9,2609.6,40.8]
[1739323216729,0.00379702,2609.9,2609.7,3.1600088]
[1739323217034,0.00379702,2609.9,2609.8,3.2078]
[1739323217237,7.952,2612.1,2610.0,3.1600088]
[1739323217238,3.2078,2610.7,2610.0,3.1600088]
[1739323217431,3.2078,2611.4,2610.6,3.1600088]
[1739323217640,3.2078,2611.4,2610.9,3.1600088]
[1739323217935,4.26280574,2611.6,2610.9,3.1600088]
[1739323217936,3.2078,2611.7,2610.9,3.1600088]
[1739323218130,3.2078,2611.7,2610.9,6.3678088]
[1739323218331,3.2078,2611.7,2611.0,0.00575109]
[1739323219631,3.2078,2611.7,2611.0,4.03401678]
[1739323220530,3.2078,2611.7,2611.0,0.00575109]
[1739323221239,3.2078,2611.7,2611.1,40.8]
[1739323221642,4.4263307,2611.6,2611.0,0.00575109]
[1739323221936,3.2078,2611.4,2611.0,0.00575109]
[1739323222438,3.2078,2611.4,2611.0,4.03401678]
[1739323223032,3.2078,2611.4,2611.0,0.00575109]
[1739323224334,3.2078,2611.1,2611.0,0.00575109]
[1739323226036,11.5341882,2611.1,2610.5,40.8]
[1739323226241,3.2078,2610.6,2610.5,40.8]
[1739323228940,7.3143709,2610.6,2610.5,40.8]
[1739323229138,9.0443709,2610.6,2610.5,40.8]
[1739323229645,15.0443709,2610.6,2610.3,0.00575109]
[1739323229843,15.0443709,2610.6,2609.1,1.73]
[1739323229844,5.72816569,2610.5,2609.3,0.5732]
[1739323230141,3.2078,2609.6,2609.3,0.5732]
[1739323230342,3.2078,2609.6,2609.0,3.2078]
[1739323230639,3.2078,2609.6,2609.1,40.8]
[1739323230937,4.3532333,2609.5,2609.1,40.8]
[1739323231138,3.2078,2609.2,2609.1,40.80575109]
[1739323232346,0.00575109,2609.4,2609.1,40.80575109]
[1739323233439,0.00575109,2609.4,2609.2,4.02826569]
[1739323233739,3.2078,2610.0,2609.2,5.23096569]
[1739323233938,3.2078,2610.0,2609.5,4.02826569]
[1739323234845,3.21355109,2610.0,2609.5,4.02826569]
[1739323235550,3.21355109,2610.0,2609.4,3.2078]
[1739323236247,3.21355109,2610.0,2609.5,4.02826569]
[1739323236450,3.21355109,2610.0,2609.8,4.02826569]
[1739323236651,3.21355109,2610.0,2609.9,0.5592]
[1739323237149,0.00575109,2610.0,2609.9,50.567]
[1739323237445,3.2078,2610.5,2609.9,51.63944123]
[1739323237636,3.2078,2610.5,2609.9,49.20166569]
[1739323238446,3.2078,2610.5,2609.9,48.03606569]
[1739323238643,7.23606569,2610.3,2609.3,3.2078]
[1739323238843,3.2078,2610.3,2609.3,3.2078]
[1739323239044,3.2078,2610.3,2609.4,44.82826569]
[1739323239243,3.2078,2610.3,2609.5,0.6081]
[1739323240048,3.2078,2610.3,2609.6,3.2078]
[1739323240656,0.6022,2610.4,2609.9,3.2078]
[1739323240847,0.6022,2610.4,2609.5,1.94031]
[1739323240848,0.6022,2610.4,2609.6,3.2078]
[1739323241651,3.2078,2610.0,2609.6,3.2078]
[1739323242455,3.2078,2610.0,2609.4,40.8]
[1739323242748,3.2078,2609.7,2609.4,40.8]
[1739323245353,0.607,2609.6,2609.4,40.8]
[1739323248359,0.00336002,2609.5,2609.4,40.8]
[1739323250159,4.2575619,2609.5,2609.1,0.00575109]
[1739323250356,3.2078,2609.2,2609.1,0.00575109]
[1739323250559,3.2078,2609.2,2609.1,40.80575109]
[1739323255258,7.6263756,2609.2,2609.1,40.80575109]
[1739323255460,7.6263756,2609.2,2609.1,0.00575109]
[1739323255765,8.28419587,2609.2,2608.3,1.1208]
[1739323256059,3.2078,2608.8,2608.7,40.8]
[1739323256260,3.2078,2609.1,2608.7,40.8]
[1739323256562,3.2078,2609.1,2608.8,0.5947]
[1739323257152,0.00575109,2609.2,2608.8,0.5947]
[1739323257355,0.00575109,2609.2,2608.9,1.62286568]
[1739323257557,0.00575109,2609.2,2609.0,0.46926568]
[1739323257766,0.00575109,2609.2,2609.1,0.46918627]
[1739323258468,0.00575109,2609.2,2609.1,41.26918627]
[1739323260166,0.00575109,2609.2,2609.1,41.2694475]
[1739323261363,0.00575109,2609.2,2609.1,41.26935335]
[1739323262067,0.00575109,2609.2,2609.1,41.2693796]
[1739323262666,0.00575109,2609.2,2609.1,40.8]
[1739323263561,4.4221557,2609.2,2609.1,40.8]
[1739323264067,4.9952557,2609.2,2609.1,40.8]
[1739323265361,0.57885109,2609.2,2609.1,40.8]
[1739323266670,4.5878836,2609.2,2609.1,40.8]
[1739323267069,0.57885109,2609.2,2609.1,40.8]
[1739323270666,10.79293595,2609.2,2608.6,0.00575109]
[1739323270862,3.2078,2608.7,2608.6,0.00575109]
[1739323271569,7.23503786,2608.7,2608.6,0.00575109]
[1739323272566,8.96503786,2608.7,2608.6,0.00575109]
[1739323273069,15.03046358,2608.7,2607.0,3.2078]
[1739323273270,15.03046358,2608.7,2607.3,0.5596]
[1739323273271,3.2078,2607.6,2607.3,0.5596]
[1739323276376,0.00575109,2607.7,2607.3,0.5596]
[1739323276673,0.00575109,2607.7,2607.4,8.01196668]
[1739323277169,3.2078,2608.3,2607.5,0.76712]
[1739323277368,3.2078,2608.3,2607.7,7.24480668]
[1739323277565,4.9388,2608.8,2608.1,3.2078]
[1739323278469,0.00575109,2608.7,2608.1,3.2078]
[1739323279673,0.00575109,2608.7,2608.1,3.97475]
[1739323279871,0.00575109,2608.7,2608.1,3.2078]
[1739323280270,0.00575109,2608.7,2607.8,0.5906]
[1739323280571,4.43645797,2608.6,2608.1,3.8042]
[1739323280772,4.43645797,2608.6,2608.2,40.8]
[1739323280966,0.00575109,2608.7,2608.2,40.8]
[1739323283272,3.2078,2608.4,2608.2,40.8]
[1739323283471,0.5541,2608.3,2607.4,1.1707]
[1739323283664,3.2078,2608.1,2607.4,1.1707]
[1739323283868,3.2078,2608.1,2607.5,40.8]
[1739323284067,4.20758591,2608.0,2607.5,40.8]
[1739323284263,3.2078,2607.8,2607.5,40.8]
[1739323284463,4.9388,2607.8,2607.5,40.8]
[1739323284668,4.13080133,2607.7,2607.5,40.8]
[1739323285269,4.9388,2607.8,2607.5,40.8]
[1739323286369,3.2078,2607.8,2607.5,40.8]
[1739323286569,3.2078,2607.8,2607.6,0.6092]
[1739323289279,3.2078,2607.8,2607.5,40.8]
[1739323290473,0.5775,2607.7,2607.5,40.8]
[1739323293081,3.2078,2607.8,2607.5,40.8]
[1739323295276,4.22991258,2607.7,2607.5,40.8]
[1739323295785,5.96091258,2607.7,2607.5,40.8]
[1739323297387,1.731,2607.7,2607.5,40.8]
[1739323297887,3.2078,2607.8,2607.5,40.8]
[1739323298088,3.2078,2607.8,2607.6,0.6042]
[1739323298687,8.4801,2608.1,2607.6,0.6042]
[1739323299579,3.2078,2607.8,2607.5,40.8]
[1739323300689,4.03700668,2607.6,2607.2,0.00575109]
[1739323300986,3.2078,2607.4,2607.3,40.8]
[1739323302886,3.2078,2607.7,2607.3,40.8]
[1739323303382,0.64022889,2607.6,2607.3,40.8]
[1739323303687,3.2078,2607.4,2607.3,40.8]
[1739323303887,3.2078,2607.4,2607.2,0.00575109]
[1739323304289,3.2078,2607.4,2607.2,40.80575109]
[1739323305382,0.5718,2607.5,2607.2,40.80575109]
[1739323305789,4.11388516,2607.4,2607.2,40.80575109]
[1739323307391,0.5993,2607.6,2607.2,40.80575109]
[1739323307392,2.3303,2607.6,2607.2,40.80575109]
[1739323308696,4.4186402,2607.5,2607.2,40.80575109]
[1739323309689,2.3303,2607.6,2607.2,40.80575109]
[1739323310483,3.98867318,2607.5,2607.2,40.80575109]
[1739323311492,2.3303,2607.6,2607.2,40.80575109]
[1739323311688,0.5993,2607.6,2607.2,40.80575109]
[1739323311886,4.9388,2607.7,2607.3,0.6006]
[1739323314382,3.2078,2607.7,2607.3,0.6006]
[1739323314583,2.979,2608.4,2607.4,7.84930668]
[1739323314584,3.2078,2608.0,2607.4,7.84930668]
[1739323314793,3.2078,2608.0,2607.4,8.61644668]
[1739323315195,3.2078,2608.4,2607.4,8.61644668]
[1739323315897,3.2078,2608.4,2607.7,7.24480668]
[1739323316192,3.2078,2608.4,2608.0,40.8]
[1739323316987,4.03700668,2608.5,2607.8,1.1441]
[1739323316988,3.2078,2608.1,2607.8,1.1441]
[1739323317192,3.2078,2608.1,2607.4,0.6045]
[1739323317394,3.2078,2607.9,2607.3,0.5767]
[1739323317592,3.2078,2607.9,2607.3,41.3767]
[1739323318095,3.2078,2607.6,2607.3,41.3767]
[1739323318490,3.2078,2607.6,2607.3,0.5767]
[1739323318999,3.2078,2607.6,2607.4,40.8]
[1739323320296,4.1706469,2607.5,2607.2,0.00575109]
[1739323320485,8.3269469,2607.5,2607.2,0.00575109]
[1739323320981,8.3269469,2607.5,2607.3,40.8]
[1739323321390,1.731,2607.4,2607.3,40.8]
[1739323322188,6.14641851,2607.4,2607.2,0.00575109]
[1739323322391,7.24480668,2607.3,2607.2,0.00575109]
[1739323322697,7.24480668,2607.3,2607.2,40.80575109]
[1739323322895,11.28555219,2607.3,2607.2,40.80575109]
[1739323323896,11.28555219,2607.3,2607.2,0.00575109]
[1739323324790,7.24854551,2607.3,2607.2,0.00575109]
[1739323324997,3.2078,2607.3,2607.2,0.00575109]
[1739323325498,7.23950059,2607.3,2607.2,0.00575109]
[1739323326494,7.23950059,2607.3,2607.2,40.80575109]
[1739323327900,11.27650727,2607.3,2606.6,0.6]
[1739323328095,3.2078,2606.9,2606.6,0.6]
[1739323328294,3.2078,2606.9,2606.6,41.4]
[1739323329295,5.95712089,2606.8,2606.6,40.8]
[1739323329501,5.95712089,2606.8,2606.5,0.00575109]
[1739323329502,7.09322089,2606.8,2606.5,0.00575109]
[1739323329703,3.2078,2606.6,2606.5,0.00575109]
[1739323330491,7.55293718,2606.6,2606.5,0.00575109]
[1739323332599,8.15533718,2606.6,2606.5,0.00575109]
[1739323333097,17.19972969,2606.6,2605.7,0.5886]
[1739323333304,3.2078,2606.0,2605.7,0.5886]
[1739323333699,3.2078,2606.0,2605.8,40.8]
[1739323334501,4.06685302,2605.9,2605.6,0.00575109]
[1739323336607,11.0828597,2605.9,2605.7,40.8]
[1739323336908,3.2078,2605.8,2605.7,40.8]
[1739323337198,7.3452965,2605.8,2605.7,40.8]
[1739323337505,7.3452965,2605.8,2605.2,0.6006]
[1739323337701,4.03700668,2605.6,2605.2,0.6006]
[1739323337902,4.9398,2605.5,2605.3,40.8]
[1739323338102,9.54626159,2605.5,2605.3,40.8]
[1739323340602,10.12496159,2605.5,2605.3,40.8]
[1739323341707,10.12496159,2605.5,2605.1,0.00575109]
[1739323341906,6.37057912,2605.2,2605.1,0.00575109]
[1739323342201,6.37057912,2605.2,2605.1,40.80575109]
[1739323342405,6.37057912,2605.2,2605.1,0.00575109]
[1739323342806,6.37057912,2605.2,2605.1,40.80575109]
[1739323343099,3.2078,2605.2,2605.1,40.80575109]
[1739323343304,7.34684816,2605.2,2605.1,40.80575109]
[1739323343696,10.50962728,2605.2,2605.1,40.80575109]
[1739323345802,10.50962728,2605.2,2605.1,0.00575109]
[1739323347710,16.50962728,2605.2,2604.7,40.8]
[1739323347907,6.37057912,2604.8,2604.4,0.562]
[1739323348103,6.37057912,2604.5,2604.3,0.5789]
[1739323348302,6.37057912,2604.5,2604.4,40.8]
[1739323348905,6.37057912,2604.5,2604.2,0.00575109]
[1739323349410,6.37057912,2604.5,2604.3,40.8]
[1739323353709,4.03220211,2604.4,2603.2,3.2078]
[1739323354013,3.2078,2604.0,2603.6,1.1319]
[1739323354209,3.16277912,2603.8,2603.7,40.8]
[1739323356415,4.94655109,2604.0,2603.7,40.8]
[1739323356818,4.04610449,2603.9,2603.7,40.8]
[1739323357520,3.16277912,2603.8,2602.7,0.31548136]
[1739323357711,6.37057912,2603.5,2602.8,1.7359]
[1739323357911,6.37057912,2603.5,2602.9,40.8]
[1739323358424,4.10785332,2603.4,2602.9,40.8]
[1739323359317,5.84085332,2603.4,2602.8,1.7359]
[1739323359915,5.84085332,2603.4,2602.9,40.8]
[1739323360416,3.2078,2603.5,2602.9,43.96277912]
[1739323360615,3.2078,2603.5,2602.9,44.73124912]
[1739323361516,1.733,2603.7,2602.9,43.96277912]
[1739323361716,6.37057912,2603.8,2603.1,3.2078]
[1739323361922,3.2078,2603.8,2603.2,0.76839]
[1739323362122,3.2078,2603.8,2603.1,3.2078]
[1739323363215,3.2078,2603.8,2603.2,0.76839]
[1739323363417,3.2078,2603.8,2603.1,3.97621]
[1739323363622,3.2078,2603.8,2603.1,3.2078]
[1739323364025,6.37057912,2603.8,2602.9,43.96277912]
[1739323364227,4.29877189,2603.7,2602.9,44.27823801]
[1739323364419,4.29877189,2603.7,2602.9,43.96277912]
[1739323365226,4.29877189,2603.7,2603.0,0.76845]
[1739323365517,4.29877189,2603.7,2603.0,3.97625]
[1739323365723,3.2078,2603.8,2603.0,3.2078]
[1739323365923,3.2078,2603.8,2603.1,0.76842]
[1739323366222,3.2078,2603.8,2603.2,0.76838]
[1739323366613,0.00575109,2604.0,2603.5,3.16277912]
[1739323366915,0.00575109,2604.0,2603.7,3.2078]
[1739323367117,3.2078,2604.5,2603.9,0.76819]
[1739323367316,3.2078,2604.8,2604.3,3.97586]
[1739323367512,3.2078,2604.8,2604.4,1.1831]
[1739323367916,6.37057912,2604.8,2604.4,1.1831]
[1739323368227,6.37057912,2604.8,2603.8,44.26667673]
[1739323368228,3.16277912,2604.5,2603.8,44.0078]
[1739323368523,3.16277912,2604.5,2604.3,0.00576225]
[1739323368722,4.12043449,2604.4,2604.3,0.00576225]
[1739323369427,5.85343449,2604.4,2604.3,0.00576225]
[1739323370412,8.83243449,2604.4,2603.8,40.8]
[1739323370719,6.37057912,2604.1,2603.8,40.8]
[1739323370925,3.2078,2604.1,2603.8,40.8]
[1739323371126,4.45751789,2604.0,2603.8,40.8]
[1739323372928,4.45751789,2604.0,2603.9,1.118]
[1739323373120,4.45751789,2604.0,2603.8,40.8]
[1739323373329,4.45751789,2604.0,2603.4,0.5925]
[1739323373524,7.26008762,2603.8,2603.4,0.5925]
[1739323373726,8.99308762,2603.8,2603.4,0.5925]
[1739323373926,4.00293864,2603.7,2603.4,41.3925]
[1739323379139,5.73593864,2603.7,2603.4,41.3925]
[1739323379340,4.00293864,2603.7,2603.4,41.3925]
[1739323379540,5.73593864,2603.7,2603.4,41.3925]
[1739323380240,3.2078,2603.5,2603.4,40.8]
[1739323380646,11.5340803,2603.5,2603.4,40.8]
[1739323380835,11.5340803,2603.5,2603.0,0.6118]
[1739323381036,3.2078,2603.2,2603.0,0.6118]
[1739323381544,4.02925685,2603.1,2603.0,0.6118]
[1739323381741,0.5575,2603.3,2603.0,41.4118]
[1739323382137,4.00737279,2603.2,2603.0,41.4118]
[1739323382337,3.21356225,2603.5,2603.0,41.4118]
[1739323382536,3.21356225,2603.5,2603.1,0.6043]
[1739323382737,3.21356225,2603.5,2603.2,0.613]
[1739323384443,3.21356225,2603.5,2603.1,0.6043]
[1739323385442,3.2078,2603.2,2603.0,41.4118]
[1739323385744,4.9408,2603.2,2603.0,41.4118]
[1739323386440,4.9408,2603.2,2603.0,40.8]
[1739323386646,4.08765145,2603.1,2603.0,40.8]
[1739323386845,4.9408,2603.2,2603.0,40.8]
[1739323387537,4.10990075,2603.1,2603.0,40.8]
[1739323389245,4.71720075,2603.1,2603.0,40.8]
[1739323389645,4.71720075,2603.1,2602.2,0.5633]
[1739323389946,3.2078,2603.0,2602.2,0.5633]
[1739323390141,3.2078,2603.0,2602.3,40.8]
[1739323390349,4.32956623,2602.9,2602.3,40.8]
[1739323390947,0.5665,2602.8,2602.3,40.8]
[1739323391946,4.05409492,2602.7,2602.3,40.8]
[1739323393755,7.26189492,2602.7,2602.3,40.8]
[1739323394550,1.734,2602.6,2602.3,40.8]
[1739323398358,3.2078,2602.4,2602.3,40.8]
[1739323399061,3.2078,2602.4,2601.5,3.93774168]
[1739323399062,13.41519181,2602.4,2600.9,3.2078]
[1739323399267,3.16884168,2601.5,2601.0,1.796]
[1739323399662,3.17460393,2601.5,2601.0,1.796]
[1739323399965,3.17460393,2601.5,2601.1,40.8]
[1739323400265,0.00576225,2601.5,2601.1,40.8]
[1739323401361,0.00576225,2601.5,2601.1,44.0078]
[1739323401566,0.00576225,2601.5,2601.1,40.8]
[1739323402463,0.00576225,2601.5,2601.1,44.0078]
[1739323405161,0.00576225,2601.5,2601.1,44.77681]
[1739323405466,0.00576225,2601.5,2601.4,3.2078]
[1739323405766,1.734,2602.1,2601.5,0.76889]
[1739323405965,1.734,2602.1,2601.7,3.2078]
[1739323406161,3.2078,2602.3,2601.7,3.2078]